lending/lending_fUSD_20240110
["ID","MTS","AMOUNT","RATE_DAILY","PERIOD"]
[311002293,1704851439375,-176.01,0.000347,2]
[311002295,1704851439384,-239.6666878,0.0003479,6]
[311002297,1704851439393,-9105.710385,0.00034794,2]
[311002298,1704851439402,-670.27,0.000348,2]
[311002300,1704851439411,-670.27,0.000348,2]
[311002302,1704851439421,-670.27,0.000348,2]
[311002304,1704851439430,-670.27,0.000348,2]
[311002306,1704851439440,-670.27,0.000348,2]
[311002308,1704851439450,-670.27,0.000348,2]
[311002310,1704851439459,-670.27,0.000348,2]
[311002311,1704851439469,-670.27,0.000348,2]
[311002313,1704851439478,-670.27,0.000348,2]
[311002315,1704851439487,-670.27,0.000348,2]
[311002317,1704851439496,-670.27,0.000348,2]
[311002319,1704851439506,-670.27,0.000348,2]
[311002320,1704851439515,-670.27,0.000348,2]
[311002322,1704851439524,-670.27,0.000348,2]
[311002324,1704851439533,-670.27,0.000348,2]
[311002326,1704851439543,-670.27,0.000348,2]
[311002328,1704851439552,-670.27,0.000348,2]
[311002330,1704851439562,-670.27,0.000348,2]
[311002331,1704851439571,-670.27,0.000348,2]
[311002333,1704851439580,-670.27,0.000348,2]
[311002335,1704851439589,-157.61,0.000348,2]
[311002337,1704851439598,-157.61,0.000348,2]
[311002339,1704851439608,-150.0,0.00034802,2]
[311002341,1704851439617,-150.0,0.00034817,2]
[311002342,1704851439626,-248.92084833,0.000349,5]
[311002344,1704851439635,-502.83575699,0.000349,2]
[311002346,1704851439643,-150.0,0.00034929,2]
[311002348,1704851439652,-12140.947181,0.00034931,2]
[311002350,1704851439662,-150.0,0.00034952,2]
[311002352,1704851439671,-223.3,0.00034954,2]
[311002353,1704851439681,-722.6428029,0.0003498,3]
[311002355,1704851439691,-807.31957538,0.0003498,3]
[311002357,1704851439700,-239.6666878,0.0003499,7]
[311002359,1704851439709,-600.0,0.00035,3]
[311002361,1704851439720,-600.0,0.00035,36]
[311002363,1704851439729,-4975.0401,0.00035,30]
[311002365,1704851439739,-155.64513584,0.00035,3]
[311002367,1704851439748,-155.0,0.00035,2]
[311002368,1704851439757,-2500.0,0.00035,2]
[311002370,1704851439768,-16484.46359372,0.00035,2]
[311002372,1704851439777,-181120.40950197,0.00035,4]
[311002374,1704851439786,-150.0,0.00035015,2]
[311002376,1704851439795,-2921.69986605,0.00035068,2]
[311002378,1704851439808,-8895.65150137,0.00035068,2]
[311002380,1704851439820,-3358.83260858,0.00035068,2]
[311002382,1704851439829,-150.0,0.00035083,2]
[311002384,1704851439838,-150.0,0.00035122,2]
[311002385,1704851439847,-150.44121488,0.00035199,2]
[311002387,1704851439857,-4332.0,0.0003523,30]
[311002389,1704851439866,-1652.80777241,0.0003523,60]
[311002390,1704851439973,-2679.19222759,0.0003523,60]
[311002391,1704851439983,-176.01,0.00035248,2]
[311002392,1704851439992,-239.6666878,0.00035332,7]
[311002393,1704851440001,-21246.657566,0.00035342,2]
[311002394,1704851440011,-150.0,0.00035381,2]
[311002395,1704851440020,-150.0,0.00035384,2]
[311002396,1704851440029,-150.0,0.00035443,2]
[311002397,1704851440038,-800.25,0.000355,2]
[311002398,1704851440047,-479.3333756,0.00035506,7]
[311002399,1704851440056,-874.4628,0.00035516,2]
[311002400,1704851440066,-209.0,0.00035516,2]
[311002401,1704851440075,-2000.0,0.00035516,4]
[311002402,1704851440084,-12989.97788602,0.00035516,3]
[311002403,1704851440136,-2347.88160815,0.00035516,3]
[311002404,1704851440148,-583.26211302,0.00035516,3]
[311002405,1704851440271,-626.52455105,0.00035516,3]
[311002466,1704851441527,-537.795,0.00035516,3]
[311002467,1704851441539,-1355.399915,0.00035516,3]
[311002468,1704851441551,-675.21345931,0.00035516,3]
[311002469,1704851441689,-4224.71522178,0.00035516,3]
[311002470,1704851441744,-614.70870623,0.00035516,3]
[311002471,1704851441756,-356.99633322,0.00035516,3]
[311002479,1704851443075,-466.75799759,0.00034569,15]
[311002480,1704851443155,-174.11200241,0.00034569,15]
[311002481,1704851443165,-31242.52520622,0.00035516,3]
[311002482,1704851443175,-502.37987699,0.00035516,2]
[311002483,1704851443184,-9643.09424639,0.00035516,8]
[311002484,1704851443194,-204.22939005,0.00035516,2]
[311002485,1704851443203,-256.49876532,0.00035516,2]
[311002486,1704851443213,-245.56640263,0.00035516,2]
[311002487,1704851443224,-151.4011,0.00035518,2]
[311002488,1704851443233,-151.4011,0.00035519,2]
[311002489,1704851443243,-151.4011,0.0003552,2]
[311002490,1704851443252,-151.4011,0.00035521,2]
[311002491,1704851443261,-151.4011,0.00035522,2]
[311002492,1704851443271,-151.4011,0.00035523,2]
[311002493,1704851443280,-151.4011,0.00035524,2]
[311002494,1704851443290,-151.4011,0.00035525,2]
[311002495,1704851443299,-151.4011,0.00035526,2]
[311002496,1704851443308,-151.4011,0.00035527,2]
[311002497,1704851443317,-151.4011,0.00035528,2]
[311002498,1704851443326,-151.4011,0.00035529,2]
[311002499,1704851443336,-151.4011,0.0003553,2]
[311002500,1704851443345,-151.4011,0.00035531,2]
[311002501,1704851443355,-151.4011,0.00035532,2]
[311002502,1704851443364,-151.4011,0.00035533,2]
[311002503,1704851443374,-151.4011,0.00035534,2]
[311002504,1704851443384,-151.4011,0.00035535,2]
[311002505,1704851443394,-151.4011,0.00035536,2]
[311002506,1704851443405,-151.4011,0.00035537,2]
[311002507,1704851443416,-151.4011,0.00035538,2]
[311002508,1704851443427,-151.4011,0.00035539,2]
[311002509,1704851443439,-151.4011,0.0003554,2]
[311002510,1704851443451,-151.4011,0.00035541,2]
[311002511,1704851443467,-151.4011,0.00035542,2]
[311002512,1704851443480,-151.4011,0.00035543,2]
[311002513,1704851443490,-151.4011,0.00035544,2]
[311002514,1704851443502,-151.4011,0.00035545,2]
[311002515,1704851443512,-151.4011,0.00035546,2]
[311002516,1704851443522,-151.4011,0.00035547,2]
[311002517,1704851443531,-151.4011,0.00035548,2]
[311002518,1704851443541,-151.4011,0.00035549,2]
[311002520,1704851443550,-151.4011,0.0003555,2]
[311002521,1704851443559,-151.4011,0.00035551,2]
[311002522,1704851443569,-151.4011,0.00035552,2]
[311002523,1704851443578,-151.4011,0.00035553,2]
[311002524,1704851443587,-151.4011,0.00035554,2]
[311002525,1704851443597,-151.4011,0.00035555,2]
[311002526,1704851443606,-151.4011,0.00035556,2]
[311002527,1704851443615,-151.4011,0.00035557,2]
[311002528,1704851443625,-151.4011,0.00035558,2]
[311002529,1704851443634,-151.4011,0.00035559,2]
[311002530,1704851443644,-151.4011,0.0003556,2]
[311002531,1704851443654,-151.4011,0.00035561,2]
[311002532,1704851443663,-151.4011,0.00035562,2]
[311002533,1704851443673,-151.4011,0.00035563,2]
[311002534,1704851443682,-151.4011,0.00035564,2]
[311002535,1704851443692,-151.4011,0.00035565,2]
[311002536,1704851443701,-151.4011,0.00035566,2]
[311002537,1704851443711,-151.4011,0.00035567,2]
[311002538,1704851443723,-151.4011,0.00035568,2]
[311002539,1704851443732,-151.4011,0.00035569,2]
[311002540,1704851443742,-151.4011,0.0003557,2]
[311002541,1704851443752,-151.4011,0.00035571,2]
[311002542,1704851443761,-151.4011,0.00035572,2]
[311002543,1704851443771,-151.4011,0.00035573,2]
[311002544,1704851443780,-151.4011,0.00035574,2]
[311002545,1704851443790,-151.4011,0.00035575,2]
[311002546,1704851443799,-151.4011,0.00035576,2]
[311002547,1704851443809,-151.4011,0.00035577,2]
[311002548,1704851443819,-151.4011,0.00035578,2]
[311002549,1704851443829,-151.4011,0.00035579,2]
[311002550,1704851443838,-151.4011,0.0003558,2]
[311002551,1704851443847,-151.4011,0.00035581,2]
[311002552,1704851443857,-151.4011,0.00035582,2]
[311002553,1704851444222,-151.4011,0.00035583,2]
[311002554,1704851444245,-151.4011,0.00035584,2]
[311002555,1704851444255,-151.4011,0.00035585,2]
[311002556,1704851444264,-151.4011,0.00035586,2]
[311002557,1704851444274,-151.4011,0.00035587,2]
[311002558,1704851444283,-151.4011,0.00035588,2]
[311002559,1704851444292,-151.4011,0.00035589,2]
[311002560,1704851444302,-151.4011,0.0003559,2]
[311002561,1704851444311,-151.4011,0.00035591,2]
[311002562,1704851444321,-151.4011,0.00035592,2]
[311002563,1704851444331,-151.4011,0.00035593,2]
[311002564,1704851444341,-151.4011,0.00035594,2]
[311002565,1704851444350,-151.4011,0.00035595,2]
[311002566,1704851444360,-151.4011,0.00035596,2]
[311002567,1704851444370,-151.4011,0.00035597,2]
[311002568,1704851444380,-151.4011,0.00035598,2]
[311002569,1704851444389,-151.4011,0.00035599,2]
[311002570,1704851444398,-151.4011,0.000356,2]
[311002571,1704851444408,-24281.894362,0.000356,2]
[311002572,1704851444417,-151.4011,0.00035601,2]
[311002573,1704851444427,-151.4011,0.00035602,2]
[311002574,1704851444436,-151.4011,0.00035603,2]
[311002575,1704851444446,-151.4011,0.00035604,2]
[311002576,1704851444455,-151.4011,0.00035605,2]
[311002577,1704851444464,-151.4011,0.00035606,2]
[311002578,1704851444475,-151.4011,0.00035607,2]
[311002579,1704851444485,-151.4011,0.00035608,2]
[311002580,1704851444494,-151.4011,0.00035609,2]
[311002581,1704851444504,-151.4011,0.0003561,2]
[311002582,1704851444513,-151.4011,0.00035611,2]
[311002583,1704851444523,-151.4011,0.00035612,2]
[311002584,1704851444532,-151.4011,0.00035613,2]
[311002585,1704851444542,-150.2483494,0.00035613,2]
[311002586,1704851444551,-4528.8981774,0.00035614,4]
[311002587,1704851444561,-151.4011,0.00035614,2]
[311002588,1704851444570,-151.4011,0.00035615,2]
[311002589,1704851444580,-251.45804703,0.00035616,7]
[311002590,1704851444589,-151.0,0.00035616,7]
[311002591,1704851444599,-151.0,0.00035616,7]
[311002592,1704851444608,-151.0,0.00035616,7]
[311002593,1704851444618,-151.0,0.00035616,7]
[311002594,1704851444627,-211.741271,0.00035616,7]
[311002595,1704851444637,-211.741271,0.00035616,7]
[311002596,1704851444646,-151.0,0.00035616,7]
[311002597,1704851444658,-151.0,0.00035616,7]
[311002598,1704851444669,-151.0,0.00035616,7]
[311002599,1704851444679,-369.199451,0.00035616,7]
[311002600,1704851444689,-369.199451,0.00035616,7]
[311002601,1704851444699,-157.221027,0.00035616,7]
[311002602,1704851444709,-151.0,0.00035616,7]
[311002603,1704851444719,-154.550838,0.00035616,7]
[311002604,1704851444728,-243.278286,0.00035616,7]
[311002605,1704851444737,-151.0,0.00035616,7]
[311002606,1704851444747,-151.0,0.00035616,7]
[311002607,1704851444756,-151.0,0.00035616,7]
[311002608,1704851444766,-151.0,0.00035616,7]
[311002609,1704851444776,-151.0,0.00035616,7]
[311002610,1704851444787,-151.0,0.00035616,7]
[311002611,1704851444797,-273.622703,0.00035616,7]
[311002612,1704851444806,-273.622703,0.00035616,7]
[311002613,1704851444816,-355.919342,0.00035616,7]
[311002614,1704851444826,-355.919342,0.00035616,7]
[311002615,1704851444835,-151.0,0.00035616,7]
[311002616,1704851444845,-945.925035,0.00035616,7]
[311002617,1704851444855,-945.925035,0.00035616,7]
[311002618,1704851444864,-151.0,0.00035616,7]
[311002619,1704851444873,-151.0,0.00035616,7]
[311002620,1704851444884,-500.0,0.00035616,2]
[311002621,1704851444896,-500.0,0.00035616,2]
[311002622,1704851444906,-419.10172595,0.00035616,2]
[311002623,1704851444915,-580.41,0.00035616,2]
[311002624,1704851444925,-500.0,0.00035616,2]
[311002625,1704851444935,-500.0,0.00035616,2]
[311002626,1704851444946,-500.0,0.00035616,2]
[311002627,1704851444956,-298.25105684,0.00035616,2]
[311002628,1704851444967,-1290.11,0.00035616,2]
[311002629,1704851444981,-907.18,0.00035616,2]
[311002630,1704851444991,-740.22,0.00035616,2]
[311002631,1704851445002,-504.91462182,0.00035616,2]
[311002632,1704851445013,-500.0,0.00035616,2]
[311002633,1704851445023,-699.83,0.00035616,2]
[311002634,1704851445033,-719.71,0.00035616,2]
[311002635,1704851445043,-501.93087703,0.00035616,2]
[311002636,1704851445052,-517.43,0.00035616,2]
[311002637,1704851445062,-705.29,0.00035616,2]
[311002638,1704851445071,-500.0,0.00035616,2]
[311002639,1704851445081,-500.0,0.00035616,2]
[311002640,1704851445090,-505.07144559,0.00035616,2]
[311002641,1704851445099,-500.0,0.00035616,2]
[311002642,1704851445109,-624.57,0.00035616,2]
[311002643,1704851445118,-500.0,0.00035616,2]
[311002644,1704851445128,-341.84243582,0.00035616,2]
[311002645,1704851445138,-500.0,0.00035616,2]
[311002646,1704851445147,-185.97688844,0.00035616,2]
[311002647,1704851445162,-314.02311156,0.00035616,2]
[311002648,1704851445171,-502.37,0.00035616,2]
[311002649,1704851445180,-500.0,0.00035616,2]
[311002650,1704851445189,-500.0,0.00035616,2]
[311002651,1704851445198,-500.0,0.00035616,2]
[311002652,1704851445207,-346.00074603,0.00035616,2]
[311002653,1704851445216,-500.0,0.00035616,2]
[311002654,1704851445226,-567.82,0.00035616,2]
[311002655,1704851445235,-500.0,0.00035616,2]
[311002656,1704851445244,-359.43914871,0.00035616,2]
[311002657,1704851445256,-140.56085129,0.00035616,2]
[311002658,1704851445265,-500.0,0.00035616,2]
[311002659,1704851445274,-500.0,0.00035616,2]
[311002660,1704851445283,-153.23081776,0.00035616,2]
[311002661,1704851445327,-346.76918224,0.00035616,2]
[311002662,1704851445336,-500.0,0.00035616,2]
[311002663,1704851445345,-304.05062634,0.00035616,2]
[311002664,1704851445357,-195.94937366,0.00035616,2]
[311002665,1704851445366,-500.0,0.00035616,2]
[311002666,1704851445375,-500.0,0.00035616,2]
[311002667,1704851445385,-500.0,0.00035616,2]
[311002668,1704851445394,-500.0,0.00035616,2]
[311002669,1704851445403,-500.0,0.00035616,2]
[311002670,1704851445412,-535.5,0.00035616,2]
[311002671,1704851445422,-778.87,0.00035616,2]
[311002672,1704851445431,-500.0,0.00035616,2]
[311002673,1704851445440,-39.82662891,0.00035616,2]
[311002674,1704851445469,-440.4400024,0.00035616,2]
[311002675,1704851445637,-19.73336869,0.00035616,2]
[311002676,1704851445646,-820.41,0.00035616,2]
[311002677,1704851445656,-500.0,0.00035616,2]
[311002678,1704851445665,-500.0,0.00035616,2]
[311002679,1704851445675,-764.21,0.00035616,2]
[311002680,1704851445684,-672.49,0.00035616,2]
[311002681,1704851445694,-500.0,0.00035616,2]
[311002682,1704851445703,-500.0,0.00035616,2]
[311002683,1704851445712,-500.0,0.00035616,2]
[311002684,1704851445722,-502.37073728,0.00035616,2]
[311002685,1704851445731,-500.0,0.00035616,2]
[311002686,1704851445740,-500.0,0.00035616,2]
[311002687,1704851445750,-530.23,0.00035616,2]
[311002688,1704851445760,-500.0,0.00035616,2]
[311002689,1704851445770,-500.0,0.00035616,2]
[311002690,1704851445779,-552.88,0.00035616,2]
[311002691,1704851445789,-500.0,0.00035616,2]
[311002692,1704851445798,-733.87,0.00035616,2]
[311002693,1704851445807,-500.0,0.00035616,2]
[311002694,1704851445816,-605.97,0.00035616,2]
[311002695,1704851445826,-582.18,0.00035616,2]
[311002696,1704851445835,-500.0,0.00035616,2]
[311002697,1704851445844,-500.0,0.00035616,2]
[311002698,1704851445853,-501.7512074,0.00035616,2]
[311002699,1704851445862,-500.0,0.00035616,2]
[311002700,1704851445871,-502.76657613,0.00035616,2]
[311002701,1704851445880,-1475.4,0.00035616,2]
[311002702,1704851445890,-501.62097564,0.00035616,2]
[311002703,1704851445900,-500.0,0.00035616,2]
[311002704,1704851445910,-558.73,0.00035616,2]
[311002705,1704851445919,-500.0,0.00035616,2]
[311002706,1704851445928,-500.0,0.00035616,2]
[311002707,1704851445938,-500.0,0.00035616,2]
[311002708,1704851445947,-655.61,0.00035616,2]
[311002709,1704851445956,-816.05,0.00035616,2]
[311002710,1704851445966,-500.0,0.00035616,2]
[311002711,1704851445977,-500.0,0.00035616,2]
[311002712,1704851445986,-573.68,0.00035616,2]
[311002713,1704851445995,-500.0,0.00035616,2]
[311002714,1704851446005,-500.0,0.00035616,2]
[311002715,1704851446015,-500.0,0.00035616,2]
[311002716,1704851446025,-500.0,0.00035616,2]
[311002717,1704851446034,-500.0,0.00035616,2]
[311002718,1704851446044,-529.76197011,0.00035616,2]
[311002719,1704851446053,-500.0,0.00035616,2]
[311002720,1704851446062,-505.42392566,0.00035616,2]
[311002721,1704851446072,-500.0,0.00035616,2]
[311002722,1704851446081,-500.0,0.00035616,2]
[311002723,1704851446091,-610.4,0.00035616,2]
[311002724,1704851446100,-504.61700728,0.00035616,2]
[311002725,1704851446109,-504.62663252,0.00035616,2]
[311002726,1704851446119,-510.35988389,0.00035616,2]
[311002727,1704851446128,-500.0,0.00035616,2]
[311002728,1704851446137,-500.0,0.00035616,2]
[311002729,1704851446146,-500.0,0.00035616,2]
[311002730,1704851446156,-500.0,0.00035616,2]
[311002731,1704851446166,-636.69,0.00035616,2]
[311002732,1704851446175,-500.0,0.00035616,2]
[311002733,1704851446184,-500.0,0.00035616,2]
[311002734,1704851446194,-542.84,0.00035616,2]
[311002735,1704851446204,-500.0,0.00035616,2]
[311002736,1704851446213,-500.0,0.00035616,2]
[311002737,1704851446223,-618.8,0.00035616,2]
[311002738,1704851446233,-533.76,0.00035616,2]
[311002739,1704851446243,-500.0,0.00035616,2]
[311002740,1704851446252,-1373.0,0.00035616,2]
[311002741,1704851446262,-500.0,0.00035616,2]
[311002742,1704851446271,-500.0,0.00035616,2]
[311002743,1704851446280,-888.86,0.00035616,2]
[311002744,1704851446289,-1851.59,0.00035616,2]
[311002745,1704851446298,-500.0,0.00035616,2]
[311002746,1704851446307,-500.0,0.00035616,2]
[311002747,1704851446317,-581.04859054,0.00035616,2]
[311002748,1704851446326,-500.0,0.00035616,2]
[311002749,1704851446336,-500.0,0.00035616,2]
[311002750,1704851446345,-500.0,0.00035616,2]
[311002751,1704851446355,-504.49374512,0.00035616,2]
[311002752,1704851446364,-1220.93,0.00035616,2]
[311002753,1704851446374,-500.0,0.00035616,2]
[311002754,1704851446382,-500.0,0.00035616,2]
[311002755,1704851446392,-1576.54,0.00035616,2]
[311002756,1704851446401,-510.35987274,0.00035616,2]
[311002757,1704851446410,-500.0,0.00035616,2]
[311002758,1704851446419,-601.61,0.00035616,2]
[311002759,1704851446428,-500.0,0.00035616,2]
[311002760,1704851446438,-500.0,0.00035616,2]
[311002761,1704851446447,-2477.52,0.00035616,2]
[311002762,1704851446456,-505.57315833,0.00035616,2]
[311002763,1704851446464,-512.3317422,0.00035616,2]
[311002764,1704851446475,-507.23329,0.00035616,2]
[311002765,1704851446484,-991.48,0.00035616,4]
[311002766,1704851446494,-500.0,0.00035616,2]
[311002768,1704851446503,-500.0,0.00035616,2]
[311002769,1704851446513,-500.0,0.00035616,2]
[311002770,1704851446522,-500.0,0.00035616,2]
[311002771,1704851446532,-2137.15,0.00035616,2]
[311002773,1704851446542,-500.0,0.00035616,2]
[311002775,1704851446551,-500.0,0.00035616,2]
[311002777,1704851446560,-548.68,0.00035616,2]
[311002787,1704851446660,-597.15823488,0.00035616,2]
[311002788,1704851446670,-604.34,0.00035616,2]
[311002789,1704851446679,-500.0,0.00035616,2]
[311002790,1704851446688,-500.0,0.00035616,2]
[311002791,1704851446698,-500.0,0.00035616,2]
[311002792,1704851446707,-500.0,0.00035616,2]
[311002793,1704851446716,-500.0,0.00035616,2]
[311002794,1704851446726,-500.0,0.00035616,2]
[311002795,1704851446736,-868.4,0.00035616,2]
[311002796,1704851446745,-504.34136781,0.00035616,2]
[311002797,1704851446755,-500.0,0.00035616,2]
[311002798,1704851446764,-1437.1,0.00035616,2]
[311002799,1704851446773,-500.0,0.00035616,2]
[311002800,1704851446782,-500.0,0.00035616,2]
[311002801,1704851446792,-500.0,0.00035616,2]
[311002802,1704851446801,-654.77,0.00035616,2]
[311002803,1704851446810,-500.0,0.00035616,2]
[311002804,1704851446821,-502.77164466,0.00035616,2]
[311002805,1704851446830,-586.46509616,0.00035616,2]
[311002806,1704851446839,-500.0,0.00035616,2]
[311002807,1704851446848,-500.0,0.00035616,2]
[311002808,1704851446859,-500.0,0.00035616,2]
[311002809,1704851446868,-809.03,0.00035616,2]
[311002810,1704851446877,-500.0,0.00035616,2]
[311002811,1704851446887,-500.0,0.00035616,2]
[311002812,1704851446897,-500.0,0.00035616,2]
[311002813,1704851446906,-500.0,0.00035616,2]
[311002814,1704851446916,-500.0,0.00035616,2]
[311002815,1704851446926,-894.12,0.00035616,2]
[311002816,1704851446935,-892.29168827,0.00035616,2]
[311002817,1704851447844,-256.9774382,0.00035515,4]
[311002818,1704851447854,-390.61508953,0.00035616,2]
[311002819,1704851447866,-843.5632222,0.00035616,2]
[311002820,1704851447875,-49.14291434,0.00035616,2]
[311002821,1704851447973,-450.85708566,0.00035616,2]
[311002822,1704851447982,-99.80375686,0.00035616,2]
[311002823,1704851447993,-400.19624314,0.00035616,2]
[311002824,1704851448003,-500.0,0.00035616,2]
[311002825,1704851448012,-500.0,0.00035616,2]
[311002826,1704851448022,-500.0,0.00035616,2]
[311002827,1704851448032,-976.79,0.00035616,2]
[311002828,1704851448042,-500.0,0.00035616,2]
[311002829,1704851448051,-500.0,0.00035616,2]
[311002830,1704851448060,-500.0,0.00035616,2]
[311002831,1704851448070,-500.0,0.00035616,2]
[311002832,1704851448079,-313.06538381,0.00035616,2]
[311002833,1704851448088,-500.0,0.00035616,2]
[311002834,1704851448096,-500.0,0.00035616,2]
[311002835,1704851448106,-617.99,0.00035616,2]
[311002836,1704851448115,-678.1,0.00035616,2]
[311002837,1704851448124,-698.45,0.00035616,2]
[311002838,1704851448133,-500.0,0.00035616,2]
[311002839,1704851448142,-500.0,0.00035616,2]
[311002840,1704851448151,-500.0,0.00035616,2]
[311002841,1704851448160,-500.0,0.00035616,2]
[311002842,1704851448169,-150.51921403,0.00035616,2]
[311002843,1704851448812,-349.48078597,0.00035616,2]
[311002844,1704851448824,-500.0,0.00035616,2]
[311002845,1704851448835,-500.0,0.00035616,2]
[311002846,1704851448845,-500.0,0.00035616,2]
[311002847,1704851448855,-500.0,0.00035616,2]
[311002848,1704851448864,-500.0,0.00035616,2]
[311002849,1704851448873,-500.0,0.00035616,2]
[311002850,1704851448883,-500.0,0.00035616,2]
[311002851,1704851448892,-500.0,0.00035616,2]
[311002852,1704851448903,-978.98,0.00035616,2]
[311002853,1704851448912,-761.87,0.00035616,2]
[311002854,1704851448926,-714.06,0.00035616,2]
[311002855,1704851448935,-367.70302243,0.00035616,2]
[311002856,1704851448973,-254.73697757,0.00035616,2]
[311002857,1704851448984,-639.01,0.00035616,2]
[311002858,1704851448993,-500.0,0.00035616,2]
[311002859,1704851449004,-1778.7159079,0.00035616,2]
[311002860,1704851449026,-97.4640921,0.00035616,2]
[311002861,1704851449037,-329.8025443,0.00035616,2]
[311002862,1704851522130,699.97640489,0.00024,14]
[311002864,1704851646794,176.01,0.00022,2]
[311002865,1704851656710,407.5,0.0002234,2]
[311002867,1704851668491,156.39,0.0002219,2]
[311002868,1704851668709,156.39,0.00022305,2]
[311002869,1704851669093,156.39,0.00022421,2]
[311002870,1704851692394,502.83575699,0.00022,2]
[311002871,1704851696051,250.0,0.00022,2]
[311002872,1704851697398,250.0,0.00022274,2]
[311002873,1704851725201,1893.38,0.00021843,2]
[311002874,1704851727079,9217.44,0.00021843,2]
[311002876,1704851756120,192.6,0.00021848,2]
[311002877,1704851756380,192.6,0.00021963,2]
[311002878,1704851756765,192.6,0.00022078,2]
[311002879,1704851756971,192.6,0.00022193,2]
[311002880,1704851757335,192.6,0.00022308,2]
[311002881,1704851757744,192.6,0.00022423,2]
[311002882,1704851796413,500.0,0.00021841,2]
[311002883,1704851800228,524.34136284,0.0002184,2]
[311002884,1704851803277,161.93429672,0.0002184,2]
[311002885,1704851824311,609.34,0.00021842,2]
[311002886,1704851830904,200.0,0.00021846,2]
[311002887,1704851832917,171.02,0.00021853,2]
[311002888,1704851853099,468.2,0.00019932,2]
[311002889,1704851853320,468.2,0.00022196,2]
[311002890,1704851853687,250.0,0.0002185,2]
[311002891,1704851880600,497.73,0.00021846,2]
[311002892,1704851902567,961.52,0.00021842,2]
[311002893,1704851907006,188.26,0.00021842,2]
[311002894,1704851924487,457.1,0.00021843,2]
[311002895,1704851943686,206.0,0.00022255,2]
[311002896,1704851967733,2811.05,0.00021766,2]
[311002897,1704851970024,166.94,0.00021991,2]
[311002905,1704852028275,200.0,0.00021766,2]
[311002908,1704852063675,750.0,0.0002176,2]
[311002909,1704852084289,150.0,0.00021759,2]
[311002910,1704852095207,156.39,0.00021925,2]
[311002911,1704852095588,156.39,0.00022088,2]
[311002912,1704852095830,156.39,0.00022251,2]
[311002913,1704852096132,156.39,0.00022415,2]
[311002914,1704852100313,312.34419126,0.00021918,2]
[311002915,1704852265432,304.67,0.00021772,2]
[311002916,1704852273203,176.01,0.00022,2]
[311002918,1704852314383,151.26616623,0.00022,2]
[311002919,1704852319535,421.38,0.00019853,2]
[311002920,1704852319775,421.38,0.00022117,2]
[311002925,1704852346470,426.62,0.00021771,2]
[311002926,1704852365412,250.0,0.00021766,2]
[311002927,1704852369405,190.19,0.00021777,2]
[311002940,1704852424008,167.14,0.00021978,2]
[311002941,1704852426236,-190.72179871,0.00022504,2]
[311002942,1704852426266,-155.0,0.00022504,2]
[311002943,1704852426297,-153.12931415,0.00022504,2]
[311002944,1704852426325,-548.63392331,0.00022505,2]
[311002945,1704852426354,-34.21764082,0.00022506,2]
[311002946,1704852440981,833.08,0.00021776,2]